lending/lending_fUSD_20260317
["ID","MTS","AMOUNT","RATE_DAILY","PERIOD"]
[408497304,1773761440710,-265.71968937,0.0001341,2]
[408497305,1773761440719,-750.0,0.0001341,2]
[408497306,1773761440728,-250.0,0.0001341,2]
[408497307,1773761440737,-282.48816514,0.0001341,2]
[408497308,1773761440746,-250.0,0.0001341,2]
[408497309,1773761440755,-250.0,0.0001341,2]
[408497310,1773761440765,-250.0,0.0001341,2]
[408497311,1773761440774,-250.0,0.0001341,2]
[408497312,1773761440783,-250.0,0.0001341,2]
[408497313,1773761440793,-250.0,0.0001341,2]
[408497314,1773761440805,-250.0,0.0001341,2]
[408497315,1773761440815,-250.0,0.0001341,2]
[408497316,1773761440824,-250.0,0.0001341,2]
[408497317,1773761440835,-250.0,0.0001341,2]
[408497318,1773761440844,-250.0,0.0001341,2]
[408497319,1773761440854,-500.0,0.0001341,2]
[408497320,1773761440864,-250.0,0.0001341,2]
[408497321,1773761440878,-250.0,0.0001341,2]
[408497322,1773761440888,-500.0,0.0001341,2]
[408497323,1773761440898,-273.91485162,0.0001341,2]
[408497324,1773761440909,-500.0,0.0001341,2]
[408497325,1773761440918,-500.0,0.0001341,2]
[408497326,1773761440928,-500.0,0.0001341,2]
[408497327,1773761440937,-500.0,0.0001341,2]
[408497328,1773761440946,-500.0,0.0001341,2]
[408497329,1773761440955,-500.0,0.0001341,2]
[408497330,1773761440966,-566.02454488,0.0001341,2]
[408497331,1773761440975,-151.0,0.0001341,2]
[408497332,1773761440984,-160.0,0.00013424,2]
[408497333,1773761440994,-458.35428,0.00013424,2]
[408497334,1773761441003,-756.70856,0.00013424,2]
[408497335,1773761441012,-160.0,0.00013424,2]
[408497336,1773761441147,-163.795376,0.00013424,2]
[408497337,1773761441157,-167.590753,0.00013424,2]
[408497338,1773761441167,-160.0,0.00013424,2]
[408497339,1773761441177,-400.412473,0.00013424,2]
[408497340,1773761441187,-640.824946,0.00013424,2]
[408497341,1773761441196,-3240.0,0.00013425,2]
[408497342,1773761441207,-151.0,0.00013465,2]
[408497343,1773761441217,-161.6,0.00013475,2]
[408497344,1773761441228,-1000.0,0.000135,2]
[408497345,1773761441239,-151.0,0.0001352,2]
[408497346,1773761441250,-350.0,0.00013557,2]
[408497347,1773761441261,-151.0,0.00013575,2]
[408497348,1773761441272,-2000.0,0.0001361,2]
[408497349,1773761441282,-151.0,0.0001363,2]
[408497350,1773761441294,-7782.3199504,0.0001367,2]
[408497351,1773761441304,-169.57265412,0.00013685,2]
[408497352,1773761441314,-350.0,0.00013697,2]
[408497353,1773761441324,-500.0,0.00013698,2]
[408497354,1773761441333,-500.0,0.00013698,2]
[408497355,1773761441343,-500.0,0.00013698,2]
[408497356,1773761441353,-500.0,0.00013698,2]
[408497357,1773761441362,-500.0,0.00013698,2]
[408497358,1773761441372,-500.0,0.00013698,2]
[408497359,1773761441382,-500.0,0.00013698,2]
[408497360,1773761441391,-277.60645891,0.00013698,2]
[408497361,1773761441400,-500.0,0.00013698,2]
[408497362,1773761441411,-500.0,0.00013698,2]
[408497363,1773761441420,-500.0,0.00013698,2]
[408497364,1773761441430,-500.0,0.00013698,2]
[408497365,1773761441439,-500.0,0.00013698,2]
[408497366,1773761441449,-500.0,0.00013698,2]
[408497367,1773761441458,-500.0,0.00013698,2]
[408497368,1773761441468,-500.0,0.00013698,2]
[408497369,1773761441478,-500.0,0.00013698,2]
[408497370,1773761441487,-500.0,0.00013698,2]
[408497371,1773761441496,-500.0,0.00013698,2]
[408497372,1773761441506,-500.0,0.00013698,2]
[408497373,1773761441515,-500.0,0.00013698,2]
[408497374,1773761441524,-500.0,0.00013698,2]
[408497375,1773761441534,-500.0,0.00013698,2]
[408497376,1773761441544,-500.0,0.00013698,2]
[408497377,1773761441554,-500.0,0.00013698,2]
[408497378,1773761441564,-500.0,0.00013698,2]
[408497379,1773761441574,-500.0,0.00013698,2]
[408497380,1773761441583,-500.0,0.00013698,2]
[408497381,1773761441592,-500.0,0.00013698,2]
[408497382,1773761441602,-293.18219645,0.00013698,2]
[408497383,1773761441611,-500.0,0.00013698,2]
[408497384,1773761441621,-500.0,0.00013698,2]
[408497385,1773761441631,-500.0,0.00013698,2]
[408497386,1773761441641,-500.0,0.00013698,2]
[408497387,1773761441650,-500.0,0.00013698,2]
[408497388,1773761441660,-500.0,0.00013698,2]
[408497389,1773761441670,-500.0,0.00013698,2]
[408497390,1773761441679,-500.0,0.00013698,2]
[408497391,1773761441688,-500.0,0.00013698,2]
[408497392,1773761441698,-500.0,0.00013698,2]
[408497393,1773761441708,-500.0,0.00013698,2]
[408497394,1773761441719,-508.76,0.00013698,2]
[408497395,1773761441728,-500.0,0.00013698,2]
[408497396,1773761441738,-500.0,0.00013698,2]
[408497397,1773761441748,-500.0,0.00013698,2]
[408497398,1773761441757,-500.0,0.00013698,2]
[408497399,1773761441767,-500.0,0.00013698,2]
[408497400,1773761441777,-500.0,0.00013698,2]
[408497401,1773761441787,-500.0,0.00013698,2]
[408497402,1773761441801,-500.0,0.00013698,2]
[408497403,1773761441811,-500.0,0.00013698,2]
[408497404,1773761441821,-500.0,0.00013698,2]
[408497405,1773761441831,-500.0,0.00013698,2]
[408497406,1773761441842,-500.0,0.00013698,2]
[408497407,1773761441852,-500.0,0.00013698,2]
[408497408,1773761441861,-500.0,0.00013698,2]
[408497409,1773761441873,-500.0,0.00013698,2]
[408497410,1773761441882,-500.0,0.00013698,2]
[408497411,1773761441893,-500.0,0.00013698,2]
[408497412,1773761441903,-500.0,0.00013698,2]
[408497413,1773761441913,-500.0,0.00013698,2]
[408497414,1773761441922,-172.819584,0.00013698,2]
[408497415,1773761441932,-1012.15,0.00013699,2]
[408497416,1773761441942,-200.0,0.00013699,2]
[408497417,1773761441951,-500.0,0.00013699,2]
[408497418,1773761441962,-500.0,0.00013699,2]
[408497419,1773761441972,-500.0,0.00013699,2]
[408497420,1773761441982,-501.05120962,0.00013699,2]
[408497421,1773761441992,-161.47913889,0.00013699,2]
[408497422,1773761442002,-196.25165977,0.00013699,2]
[408497423,1773761442011,-501.11208385,0.00013699,2]
[408497424,1773761442021,-501.74650809,0.00013699,2]
[408497425,1773761442030,-500.90003324,0.00013699,2]
[408497426,1773761442040,-503.41003758,0.00013699,2]
[408497427,1773761442049,-237.17420246,0.00013699,2]
[408497428,1773761442058,-164.59663798,0.00013699,2]
[408497429,1773761442068,-164.37206897,0.00013699,2]
[408497430,1773761442077,-168.29895727,0.00013699,2]
[408497431,1773761442088,-500.0,0.00013699,2]
[408497432,1773761442097,-500.0,0.00013699,2]
[408497433,1773761442107,-514.5009676,0.00013699,2]
[408497434,1773761442117,-500.0,0.00013699,2]
[408497435,1773761442127,-500.0,0.00013699,2]
[408497436,1773761442136,-207.876186,0.00013699,2]
[408497437,1773761442146,-207.876186,0.00013699,2]
[408497438,1773761442155,-207.876186,0.00013699,2]
[408497439,1773761442164,-207.876186,0.00013699,2]
[408497440,1773761442173,-157.85,0.00013717,2]
[408497441,1773761442182,-433.0,0.00013772,2]
[408497442,1773761442191,-693.79,0.00013788,2]
[408497443,1773761442200,-587.0,0.00013827,2]
[408497444,1773761442210,-407.0,0.00013827,2]
[408497445,1773761442219,-2351.0,0.00013868,2]
[408497446,1773761442228,-290.239947,0.00013917,7]
[408497447,1773761442237,-160.0,0.00013941,7]
[408497448,1773761442246,-252.04851,0.00013941,7]
[408497449,1773761442255,-344.09702,0.00013941,7]
[408497450,1773761442264,-151.0,0.00013974,2]
[408497451,1773761442274,-151.0,0.00013974,2]
[408497452,1773761442283,-409.0068365,0.00014041,2]
[408497453,1773761442292,-15234.7607895,0.00014041,2]
[408497454,1773761442302,-1519.0,0.00014055,2]
[408497455,1773761442311,-1117.24702955,0.00014055,2]
[408497456,1773761442320,-160.0,0.000141,7]
[408497457,1773761442329,-298.964609,0.000141,7]
[408497458,1773761442339,-437.929218,0.000141,7]
[408497459,1773761442348,-350.0,0.00014101,2]
[408497460,1773761442358,-16723.0971258,0.0001413,2]
[408497461,1773761442367,-350.0,0.00014172,2]
[408497462,1773761442376,-22863.1994995,0.00014225,2]
[408497463,1773761442385,-2029.5788556,0.00014225,2]
[408497464,1773761442395,-1000.0,0.00014247,2]
[408497465,1773761442404,-500.0,0.00014247,2]
[408497466,1773761442414,-500.0,0.00014247,2]
[408497467,1773761442423,-500.0,0.00014247,2]
[408497468,1773761442432,-1000.0,0.00014247,2]
[408497469,1773761442442,-5347.90517745,0.00014274,2]
[408497470,1773761442451,-256.95997194,0.00014337,2]
[408497471,1773761442460,-7782.3199504,0.00014375,2]
[408497472,1773761442470,-1012.15,0.00014384,2]
[408497473,1773761442479,-726.4646336,0.00014387,2]
[408497475,1773761442488,-666.0,0.00014387,2]
[408497476,1773761442497,-97609.7357871,0.00014388,2]
[408497478,1773761442506,-5101.4693658,0.00014586,2]
[408497479,1773761442515,-452.860255,0.00014586,2]
[408497480,1773761442525,-490.31834096,0.00014737,2]
[408497481,1773761442534,-21779.6759782,0.00014753,2]
[408497482,1773761442543,-166.67,0.00014775,2]
[408497483,1773761442552,-164.77,0.00014784,2]
[408497484,1773761442562,-1000.0,0.00014795,2]
[408497485,1773761442571,-1500.0,0.00014795,2]
[408497486,1773761442580,-769.1029618,0.00014894,2]
[408497487,1773761442590,-6960.2883742,0.00014894,2]
[408497488,1773761442599,-2000.0,0.00014971,2]
[408497490,1773761442608,-373.47479422,0.00014999,2]
[408497491,1773761442618,-100000.0,0.00015,2]
[408497492,1773761442627,-250.0,0.00015,2]
[408497493,1773761442636,-151.0,0.00015,2]
[408497494,1773761442645,-151.0,0.00015,2]
[408497495,1773761442654,-207.876186,0.00015,2]
[408497496,1773761442664,-207.876186,0.00015,2]
[408497497,1773761442673,-207.876186,0.00015,2]
[408497498,1773761442682,-207.876186,0.00015,2]
[408497499,1773761442691,-736.0,0.00015043,2]
[408497500,1773761442699,-1260.0,0.00015067,2]
[408497502,1773761442708,-1214.0,0.00015067,2]
[408497503,1773761442718,-923.0,0.00015067,2]
[408497504,1773761442727,-6004.0,0.00015067,2]
[408497505,1773761442736,-2465.0,0.00015067,2]
[408497506,1773761442745,-1012.15,0.00015068,2]
[408497507,1773761442754,-7782.3199504,0.0001508,2]
[408497508,1773761442763,-350.0,0.00015172,2]
[408497509,1773761442773,-5347.90517745,0.00015181,2]
[408497510,1773761442782,-823.0,0.00015188,2]
[408497511,1773761442791,-215.08,0.00015236,2]
[408497512,1773761442805,-163.4,0.00015248,2]
[408497513,1773761442814,-3292.0,0.00015255,2]
[408497514,1773761442823,-693.79,0.0001532,2]
[408497515,1773761442832,-2000.0,0.00015342,2]
[408497516,1773761442843,-171.610067,0.00015404,2]
[408497517,1773761442852,-1553.0502596,0.00015404,2]
[408497518,1773761442861,-2211.237584,0.00015438,7]
[408497519,1773761442871,-317.9,0.00015453,2]
[408497520,1773761442880,-164.78,0.00015461,2]
[408497521,1773761442889,-409.0068365,0.00015473,2]
[408497522,1773761442898,-15234.7607895,0.00015473,2]
[408497523,1773761443005,-164.8,0.00015495,2]
[408497524,1773761443015,-4000.0,0.00015507,2]
[408497525,1773761443023,-317.89732139,0.00015674,2]
[408497526,1773761443032,-256.95997194,0.00015728,2]
[408497528,1773761443041,-1012.15,0.00015753,2]
[408497530,1773761443051,-7782.3199504,0.00015785,2]
[408497531,1773761443060,-533.0,0.000158,2]
[408497533,1773761443069,-4610.0,0.00015863,2]
[408497535,1773761443078,-2000.0,0.0001589,2]
[408497538,1773761443088,-2500.0,0.0001589,2]
[408497540,1773761443097,-4000.0,0.00015895,2]
[408497541,1773761443107,-16200.0,0.000159,5]
[408497544,1773761443116,-6072.81,0.00015948,2]
[408497546,1773761443125,-1306.079765,0.00016005,7]
[408497547,1773761443134,-5347.90517745,0.00016087,2]
[408497550,1773761443144,-164.77,0.00016103,2]
[408497551,1773761443153,-1718.828551,0.00016109,7]
[408497553,1773761443162,-2252.320162,0.00016109,7]
[408497554,1773761443171,-350.0,0.00016172,2]
[408497555,1773761443180,-2400.0,0.00016201,2]
[408497556,1773761443189,-4000.0,0.00016282,2]
[408497557,1773761443198,-2000.0,0.00016332,2]
[408497558,1773761443207,-151.05823844,0.00016333,2]
[408497559,1773761443218,-2400.0,0.000164,2]
[408497560,1773761443228,-2400.0,0.000164,2]
[408497561,1773761443237,-1252.0,0.00016429,2]
[408497562,1773761443247,-202.49865762,0.00016438,2]
[408497563,1773761443256,-150.0,0.00016438,2]
[408497564,1773761443267,-150.0,0.00016438,2]
[408497565,1773761443276,-150.0,0.00016438,2]
[408497566,1773761443286,-153.80287197,0.00016438,2]
[408497567,1773761443295,-1012.15,0.00016438,2]
[408497568,1773761443304,-151.0,0.00016438,2]
[408497569,1773761443314,-151.0,0.00016438,2]
[408497570,1773761443324,-151.0,0.00016438,2]
[408497571,1773761443333,-151.0,0.00016438,2]
[408497572,1773761443343,-151.0,0.00016438,2]
[408497573,1773761443352,-151.0,0.00016438,2]
[408497574,1773761443363,-151.0,0.00016438,2]
[408497575,1773761443372,-151.0,0.00016438,2]
[408497576,1773761443382,-304.995305,0.00016438,2]
[408497577,1773761443391,-1000.0,0.00016438,2]
[408497578,1773761443400,-475.95720727,0.0001648,2]
[408497579,1773761443410,-7782.3199504,0.0001649,2]
[408497580,1773761443420,-8383.04573307,0.00016519,2]
[408497581,1773761443429,-4000.0,0.0001667,2]
[408497582,1773761443438,-879.98,0.00016682,2]
[408497583,1773761443447,-1152.0,0.00016682,2]
[408497584,1773761443456,-782.14,0.00016682,2]
[408497585,1773761443465,-1538.0,0.00016695,2]
[408497586,1773761443475,-2400.0,0.00016695,2]
[408497587,1773761443484,-2000.0,0.000167,2]
[408497588,1773761443494,-2022.0,0.000167,2]
[408497589,1773761443503,-166.66,0.00016712,2]
[408497590,1773761443512,-849.77642552,0.00016737,2]
[408497591,1773761443522,-1538.0,0.0001676,2]
[408497592,1773761443531,-215.08,0.00016774,2]
[408497593,1773761443540,-4609.0,0.00016781,2]
[408497594,1773761443550,-693.79,0.00016852,2]
[408497595,1773761443559,-702.0,0.00016857,2]
[408497596,1773761443568,-150.0,0.00016888,2]
[408497597,1773761443578,-2400.0,0.00016892,2]
[408497598,1773761443587,-409.0068365,0.00016904,2]
[408497599,1773761443597,-15234.7607895,0.00016904,2]
[408497600,1773761443606,-163.0,0.00016919,2]
[408497601,1773761443617,-1121.117285,0.0001692,7]
[408497602,1773761443626,-702.0,0.00016954,2]
[408497603,1773761443635,-5347.90517745,0.00016994,2]
[408497604,1773761443644,-433.26,0.00016997,2]
[408497605,1773761443654,-433.27245241,0.00016997,2]
[408497606,1773761443664,-1180.47993758,0.00017,2]
[408497607,1773761443674,-300.0,0.00017,2]
[408497608,1773761443683,-150.0,0.00017055,2]
[408497609,1773761443692,-4000.0,0.00017058,2]
[408497610,1773761443702,-702.0,0.00017058,2]
[408497611,1773761443712,-1538.0,0.0001708,2]
[408497612,1773761443721,-553.49386102,0.00017113,2]
[408497613,1773761443730,-150.0,0.00017115,7]
[408497614,1773761443740,-150.0,0.00017115,7]
[408497615,1773761443749,-150.0,0.00017115,7]
[408497616,1773761443759,-227.0,0.00017115,7]
[408497617,1773761443768,-550.0,0.00017115,7]
[408497618,1773761443777,-550.0,0.00017115,7]
[408497619,1773761443786,-550.0,0.00017115,7]
[408497620,1773761443799,-550.0,0.00017115,7]
[408497621,1773761443809,-550.0,0.00017115,7]
[408497622,1773761443817,-517.0,0.00017115,7]
[408497623,1773761443826,-150.0,0.00017115,7]
[408497624,1773761443836,-235.0,0.00017115,7]
[408497625,1773761443845,-168.0,0.00017116,2]
[408497626,1773761443854,-256.95997194,0.00017118,2]
[408497627,1773761443863,-702.0,0.00017168,2]
[408497628,1773761443875,-350.0,0.00017172,2]
[408497629,1773761443884,-702.0,0.00017179,2]
[408497630,1773761443894,-702.0,0.0001719,2]
[408497631,1773761443903,-151.0,0.00017195,2]
[408497632,1773761443912,-151.0,0.00017195,2]
[408497633,1773761443920,-151.0,0.00017195,2]
[408497634,1773761443930,-7782.3199504,0.00017195,2]
[408497635,1773761443939,-207.876186,0.00017195,2]
[408497636,1773761443948,-207.876186,0.00017195,2]
[408497637,1773761443957,-207.876186,0.00017195,2]
[408497638,1773761443966,-207.876186,0.00017195,2]
[408497639,1773761443975,-702.0,0.00017211,2]
[408497640,1773761443984,-217.57397877,0.00017211,5]
[408497641,1773761443993,-1538.0,0.00017235,2]
[408497642,1773761444002,-500.0,0.00017252,2]
[408497643,1773761444011,-702.0,0.00017252,2]
[408497644,1773761444020,-551.54591552,0.0001727,2]
[408497645,1773761444030,-702.0,0.0001727,2]
[408497646,1773761444039,-702.0,0.00017298,2]
[408497647,1773761444048,-600.0,0.00017347,2]
[408497648,1773761444058,-1665.0,0.00017359,2]
[408497649,1773761444067,-702.0,0.00017362,2]
[408497650,1773761444077,-500.0,0.00017382,2]
[408497651,1773761444086,-702.0,0.00017389,2]
[408497652,1773761444095,-702.0,0.00017407,2]
[408497653,1773761444105,-702.0,0.00017422,2]
[408497654,1773761444115,-163.4,0.00017427,2]
[408497655,1773761444124,-4799.03516316,0.00017432,2]
[408497656,1773761444134,-500.0,0.00017437,2]
[408497657,1773761444143,-400.0,0.0001747,2]
[408497658,1773761444152,-400.0,0.0001747,2]
[408497659,1773761444162,-500.0,0.00017487,2]
[408497660,1773761444171,-702.0,0.00017532,2]
[408497661,1773761444181,-400.0,0.0001757,2]
[408497662,1773761444190,-291.0,0.00017584,2]
[408497663,1773761444199,-702.0,0.00017593,2]
[408497664,1773761444208,-702.0,0.00017619,2]
[408497665,1773761444218,-1973.22752126,0.0001764,2]
[408497666,1773761444227,-702.0,0.0001765,2]
[408497667,1773761444236,-702.0,0.00017667,2]
[408497668,1773761444245,-2400.0,0.00017679,2]
[408497669,1773761444255,-500.0,0.0001773,2]
[408497670,1773761444264,-702.0,0.00017738,2]
[408497671,1773761444274,-800.0,0.0001774,2]
[408497672,1773761444283,-285.70385453,0.000178,2]
[408497673,1773761444292,-3200.0,0.000178,6]
[408497674,1773761444301,-800.0,0.00017808,2]
[408497675,1773761444311,-500.0,0.00017822,2]
[408497676,1773761444320,-600.0,0.00017832,2]
[408497677,1773761444330,-320.96072028,0.00017843,2]
[408497678,1773761444339,-600.0,0.00017852,2]
[408497679,1773761444348,-702.0,0.0001786,2]
[408497680,1773761444358,-250.0,0.000179,2]
[408497681,1773761444367,-250.0,0.000179,2]
[408497682,1773761444376,-250.0,0.000179,2]
[408497683,1773761444385,-250.0,0.000179,2]
[408497684,1773761444394,-250.0,0.000179,2]
[408497685,1773761444403,-250.0,0.000179,2]
[408497686,1773761444411,-250.0,0.000179,2]
[408497687,1773761444420,-250.0,0.000179,2]
[408497688,1773761444429,-250.0,0.000179,2]
[408497689,1773761444438,-215.0,0.000179,2]
[408497690,1773761444447,-200.0,0.000179,2]
[408497691,1773761444457,-12875.82740766,0.000179,2]
[408497692,1773761444467,-490.31834096,0.000179,2]
[408497693,1773761444476,-3200.0,0.000179,6]
[408497694,1773761444485,-7782.3199504,0.000179,2]
[408497695,1773761444495,-5347.90517745,0.000179,2]
[408497696,1773761444504,-2129.0,0.00017943,2]
[408497697,1773761444513,-500.0,0.00017945,2]
[408497698,1773761444522,-400.0,0.0001797,2]
[408497699,1773761444532,-400.0,0.0001797,2]
[408497700,1773761444541,-400.0,0.0001797,2]
[408497701,1773761444550,-400.0,0.0001797,2]
[408497702,1773761444560,-400.0,0.0001797,2]
[408497703,1773761444570,-451.15996436,0.0001797,2]
[408497704,1773761444673,-460.1571272,0.0001799,2]
[408497705,1773761444683,-460.1571272,0.0001799,2]
[408497706,1773761444693,-150.0,0.00017998,2]
[408497707,1773761444702,-300.0,0.00017998,2]
[408497708,1773761444711,-300.0,0.00017998,2]
[408497709,1773761444720,-500.0,0.00017999,2]
[408497710,1773761444729,-560.42844238,0.00017999,2]
[408497711,1773761444738,-500.0,0.00017999,2]
[408497712,1773761444747,-545.81673894,0.00017999,2]
[408497713,1773761444756,-500.0,0.00017999,2]
[408497714,1773761444766,-500.0,0.00017999,2]
[408497715,1773761444775,-500.0,0.00017999,2]
[408497716,1773761444784,-500.0,0.00017999,2]
[408497717,1773761444794,-500.0,0.00017999,2]
[408497718,1773761444807,-500.0,0.00017999,2]
[408497719,1773761444817,-500.0,0.00017999,2]
[408497720,1773761444826,-500.0,0.00017999,2]
[408497721,1773761444835,-500.0,0.00017999,2]
[408497722,1773761444844,-500.0,0.00017999,2]
[408497723,1773761444854,-500.0,0.00017999,2]
[408497724,1773761444863,-500.0,0.00017999,2]
[408497725,1773761444874,-500.0,0.00017999,2]
[408497726,1773761444883,-500.0,0.00017999,2]
[408497727,1773761444892,-500.0,0.00017999,2]
[408497728,1773761444901,-500.0,0.00017999,2]
[408497729,1773761444910,-500.0,0.00017999,2]
[408497730,1773761444920,-500.0,0.00017999,2]
[408497731,1773761444929,-500.0,0.00017999,2]
[408497732,1773761444938,-500.0,0.00017999,2]
[408497733,1773761444947,-355.55659377,0.00017999,2]
[408497734,1773761444956,-500.0,0.00017999,2]
[408497735,1773761444966,-500.0,0.00017999,2]
[408497736,1773761444976,-500.0,0.00017999,2]
[408497737,1773761444985,-500.0,0.00017999,2]
[408497738,1773761444994,-500.0,0.00017999,2]
[408497739,1773761445003,-500.0,0.00017999,2]
[408497740,1773761445012,-500.0,0.00017999,2]
[408497741,1773761445021,-500.0,0.00017999,2]
[408497742,1773761445030,-500.0,0.00017999,2]
[408497743,1773761445039,-500.0,0.00017999,2]
[408497744,1773761445048,-500.0,0.00017999,2]
[408497745,1773761445057,-500.0,0.00017999,2]
[408497746,1773761445066,-500.0,0.00017999,2]
[408497747,1773761445075,-500.0,0.00017999,2]
[408497748,1773761445084,-500.0,0.00017999,2]
[408497749,1773761445094,-500.0,0.00017999,2]
[408497750,1773761445103,-500.0,0.00017999,2]
[408497751,1773761445112,-500.0,0.00017999,2]
[408497752,1773761445122,-500.0,0.00017999,2]
[408497753,1773761445131,-500.0,0.00017999,2]
[408497754,1773761445140,-500.0,0.00017999,2]
[408497755,1773761445149,-500.0,0.00017999,2]
[408497756,1773761445158,-500.0,0.00017999,2]
[408497757,1773761445168,-500.0,0.00017999,2]
[408497758,1773761445177,-500.0,0.00017999,2]
[408497759,1773761445187,-500.0,0.00017999,2]
[408497760,1773761445197,-500.0,0.00017999,2]
[408497761,1773761445207,-500.0,0.00017999,2]
[408497762,1773761445216,-500.0,0.00017999,2]
[408497763,1773761445225,-479.17,0.00017999,2]
[408497764,1773761445235,-500.0,0.00017999,2]
[408497765,1773761445244,-500.0,0.00017999,2]
[408497766,1773761445254,-500.0,0.00017999,2]
[408497767,1773761445263,-500.0,0.00017999,2]
[408497768,1773761445272,-500.0,0.00017999,2]
[408497769,1773761445283,-600.49565647,0.00017999,2]
[408497770,1773761445294,-700.86,0.00017999,2]
[408497771,1773761445304,-700.86,0.00017999,2]
[408497772,1773761445314,-700.86,0.00017999,2]
[408497773,1773761445324,-700.86,0.00017999,2]
[408497774,1773761445333,-700.86,0.00017999,2]
[408497775,1773761445344,-700.86,0.00017999,2]
[408497776,1773761445354,-700.86,0.00017999,2]
[408497777,1773761445363,-700.86,0.00017999,2]
[408497778,1773761445373,-700.86,0.00017999,2]
[408497779,1773761445383,-700.86,0.00017999,2]
[408497780,1773761445393,-700.86,0.00017999,2]
[408497781,1773761445402,-700.86,0.00017999,2]
[408497782,1773761445411,-700.86,0.00017999,2]
[408497783,1773761445420,-700.86,0.00017999,2]
[408497784,1773761445429,-700.86,0.00017999,2]
[408497785,1773761445439,-700.86,0.00017999,2]
[408497786,1773761445448,-700.86,0.00017999,2]
[408497787,1773761445457,-700.86,0.00017999,2]
[408497788,1773761445466,-700.86,0.00017999,2]
[408497790,1773761445476,-700.86,0.00017999,2]
[408497792,1773761445484,-700.86,0.00017999,2]
[408497794,1773761445494,-700.86,0.00017999,2]
[408497795,1773761445503,-700.86,0.00017999,2]
[408497796,1773761445511,-701.05555932,0.00017999,2]
[408497797,1773761445520,-500.0,0.00017999,2]
[408497798,1773761445531,-500.0,0.00017999,2]
[408497799,1773761445540,-500.0,0.00017999,2]
[408497800,1773761445549,-265.99573624,0.00017999,2]
[408497801,1773761445558,-500.0,0.00017999,2]
[408497802,1773761445568,-500.0,0.00017999,2]
[408497803,1773761445577,-500.0,0.00017999,2]
[408497804,1773761445586,-500.0,0.00017999,2]
[408497805,1773761445596,-177.63188648,0.00017999,2]
[408497806,1773761445605,-500.0,0.00017999,2]
[408497807,1773761445616,-500.0,0.00017999,2]
[408497808,1773761445626,-500.0,0.00017999,2]
[408497809,1773761445635,-500.0,0.00017999,2]
[408497810,1773761445644,-500.0,0.00017999,2]
[408497811,1773761445653,-374.6567215,0.00017999,2]
[408497812,1773761445664,-500.0,0.00017999,2]
[408497813,1773761445673,-500.0,0.00017999,2]
[408497814,1773761445683,-500.0,0.00017999,2]
[408497815,1773761445691,-399.59404895,0.00017999,2]
[408497816,1773761445700,-150.0,0.00017999,2]
[408497817,1773761445709,-154.93781898,0.00017999,2]
[408497818,1773761445719,-300.0,0.00017999,2]
[408497819,1773761445728,-300.0,0.00017999,2]
[408497820,1773761445738,-381351.496624,0.00018,2]
[408497821,1773761445747,-2604538.27242891,0.00018,2]
[408497822,1773761445912,162.41,6.484e-05,2]
[408497823,1773761445962,162.41,7.073e-05,2]